fUST/lending_fUST_20241212
["ID","MTS","AMOUNT","RATE_DAILY","PERIOD"]
[345037212,1733944270576,-500.0,0.00029863,7]
[345037213,1733944270587,-449.36606864,0.00029863,7]
[345037214,1733944270596,-2277.05,0.00029863,7]
[345037215,1733944270605,-2277.05,0.00029863,7]
[345037216,1733944270620,-2277.05,0.00029863,7]
[345037217,1733944270629,-2277.05,0.00029863,7]
[345037218,1733944270639,-500.0,0.00029863,7]
[345037219,1733944270647,-2277.05,0.00029863,7]
[345037220,1733944270657,-500.0,0.00029863,7]
[345037221,1733944270666,-2277.05,0.00029863,7]
[345037222,1733944270675,-500.0,0.00029863,7]
[345037223,1733944270684,-500.0,0.00029863,7]
[345037224,1733944270693,-500.0,0.00029863,7]
[345037225,1733944270702,-500.0,0.00029863,7]
[345037226,1733944270711,-2277.05,0.00029863,7]
[345037227,1733944270720,-500.0,0.00029863,7]
[345037228,1733944270730,-500.0,0.00029863,7]
[345037229,1733944270738,-500.0,0.00029863,7]
[345037230,1733944270747,-500.0,0.00029863,7]
[345037231,1733944270756,-2277.05,0.00029863,7]
[345037232,1733944270765,-500.0,0.00029863,7]
[345037233,1733944270774,-7298.46,0.00029863,7]
[345037234,1733944270783,-500.0,0.00029863,7]
[345037235,1733944270791,-500.0,0.00029863,7]
[345037236,1733944270801,-2277.05,0.00029863,7]
[345037237,1733944270810,-500.0,0.00029863,7]
[345037238,1733944270819,-7298.46,0.00029863,7]
[345037239,1733944270828,-500.0,0.00029863,7]
[345037240,1733944270837,-500.0,0.00029863,7]
[345037241,1733944270846,-500.0,0.00029863,7]
[345037242,1733944270861,-2277.05,0.00029863,7]
[345037243,1733944270870,-500.0,0.00029863,7]
[345037244,1733944270879,-500.0,0.00029863,7]
[345037245,1733944270888,-500.0,0.00029863,7]
[345037246,1733944270897,-2277.05,0.00029863,7]
[345037247,1733944270906,-500.0,0.00029863,7]
[345037248,1733944270915,-500.0,0.00029863,7]
[345037249,1733944270925,-7298.46,0.00029863,7]
[345037250,1733944270934,-500.0,0.00029863,7]
[345037251,1733944270943,-500.0,0.00029863,7]
[345037252,1733944270953,-500.0,0.00029863,7]
[345037253,1733944270962,-2277.05,0.00029863,7]
[345037254,1733944270972,-500.0,0.00029863,7]
[345037255,1733944270981,-7298.46,0.00029863,7]
[345037256,1733944270991,-500.0,0.00029863,7]
[345037257,1733944271000,-500.0,0.00029863,7]
[345037258,1733944271009,-500.0,0.00029863,7]
[345037259,1733944271018,-2277.05,0.00029863,7]
[345037260,1733944271030,-500.0,0.00029863,7]
[345037261,1733944271047,-500.0,0.00029863,7]
[345037262,1733944271061,-7298.46,0.00029863,7]
[345037263,1733944271078,-500.0,0.00029863,7]
[345037264,1733944271097,-500.0,0.00029863,7]
[345037265,1733944271114,-2277.05,0.00029863,7]
[345037266,1733944271131,-500.0,0.00029863,7]
[345037267,1733944271147,-500.0,0.00029863,7]
[345037268,1733944271162,-500.0,0.00029863,7]
[345037269,1733944271175,-500.0,0.00029863,7]
[345037270,1733944271192,-7298.46,0.00029863,7]
[345037271,1733944271208,-500.0,0.00029863,7]
[345037272,1733944271225,-2277.05,0.00029863,7]
[345037273,1733944271240,-500.0,0.00029863,7]
[345037274,1733944271252,-500.0,0.00029863,7]
[345037275,1733944271270,-500.0,0.00029863,7]
[345037276,1733944271283,-500.0,0.00029863,7]
[345037277,1733944271298,-500.0,0.00029863,7]
[345037278,1733944271311,-500.0,0.00029863,7]
[345037279,1733944271324,-500.0,0.00029863,7]
[345037280,1733944271338,-2277.05,0.00029863,7]
[345037281,1733944271352,-500.0,0.00029863,7]
[345037282,1733944271365,-500.0,0.00029863,7]
[345037283,1733944271378,-7298.46,0.00029863,7]
[345037284,1733944271392,-500.0,0.00029863,7]
[345037285,1733944271405,-500.0,0.00029863,7]
[345037286,1733944271419,-2277.05,0.00029863,7]
[345037287,1733944271432,-155.92,0.00029863,7]
[345037288,1733944271445,-500.0,0.00029863,7]
[345037289,1733944271459,-500.0,0.00029863,7]
[345037290,1733944271472,-7298.46,0.00029863,7]
[345037291,1733944271485,-500.0,0.00029863,7]
[345037292,1733944271498,-2277.05,0.00029863,7]
[345037293,1733944271511,-500.0,0.00029863,7]
[345037294,1733944271525,-500.0,0.00029863,7]
[345037295,1733944271537,-500.0,0.00029863,7]
[345037296,1733944271553,-500.0,0.00029863,7]
[345037297,1733944271567,-7298.46,0.00029863,7]
[345037298,1733944271580,-500.0,0.00029863,7]
[345037299,1733944271593,-500.0,0.00029863,7]
[345037300,1733944271605,-2277.05,0.00029863,7]
[345037301,1733944271618,-178.44620687,0.00029863,7]
[345037302,1733944271631,-500.0,0.00029863,7]
[345037303,1733944271644,-7298.46,0.00029863,7]
[345037304,1733944271657,-500.0,0.00029863,7]
[345037305,1733944271670,-500.0,0.00029863,7]
[345037306,1733944271683,-500.0,0.00029863,7]
[345037307,1733944271695,-2277.05,0.00029863,7]
[345037308,1733944271708,-500.0,0.00029863,7]
[345037309,1733944271721,-500.0,0.00029863,7]
[345037310,1733944271734,-7298.46,0.00029863,7]
[345037311,1733944271748,-455.48724883,0.00029863,7]
[345037312,1733944271760,-500.0,0.00029863,7]
[345037313,1733944271773,-2277.05,0.00029863,7]
[345037314,1733944271786,-500.0,0.00029863,7]
[345037315,1733944271798,-500.0,0.00029863,7]
[345037316,1733944271811,-500.0,0.00029863,7]
[345037317,1733944271824,-7298.46,0.00029863,7]
[345037318,1733944271837,-2277.05,0.00029863,7]
[345037319,1733944271850,-500.0,0.00029863,7]
[345037320,1733944271862,-500.0,0.00029863,7]
[345037321,1733944271875,-7298.46,0.00029863,7]
[345037322,1733944271889,-500.0,0.00029863,7]
[345037323,1733944271902,-2277.05,0.00029863,7]
[345037324,1733944271915,-500.0,0.00029863,7]
[345037325,1733944271927,-500.0,0.00029863,7]
[345037326,1733944271940,-7298.46,0.00029863,7]
[345037327,1733944271953,-493.56223615,0.00029863,7]
[345037328,1733944271968,-196.53142409,0.00029863,7]
[345037329,1733944271982,-506.39645338,0.00029863,7]
[345037330,1733944271996,-500.0,0.00029863,7]
[345037331,1733944272009,-7298.46,0.00029863,7]
[345037332,1733944272022,-2277.1611242,0.00029863,7]
[345037333,1733944272035,-500.0,0.00029863,7]
[345037334,1733944272049,-531.52741638,0.00029863,7]
[345037335,1733944272062,-7298.46,0.00029863,7]
[345037336,1733944272212,-508.18758384,0.00029863,7]
[345037337,1733944272228,-7298.46,0.00029863,7]
[345037338,1733944272238,-7298.46,0.00029863,7]
[345037339,1733944272248,-7298.46,0.00029863,7]
[345037340,1733944272257,-7298.46,0.00029863,7]
[345037341,1733944272267,-500.0,0.00029863,7]
[345037342,1733944272277,-500.0,0.00029863,7]
[345037343,1733944272286,-7298.46,0.00029863,7]
[345037344,1733944272296,-500.0,0.00029863,7]
[345037345,1733944272305,-500.0,0.00029863,7]
[345037346,1733944272315,-500.0,0.00029863,7]
[345037347,1733944272325,-7298.46,0.00029863,7]
[345037348,1733944272335,-500.0,0.00029863,7]
[345037349,1733944272344,-500.0,0.00029863,7]
[345037350,1733944272354,-500.0,0.00029863,7]
[345037351,1733944272363,-7298.46,0.00029863,7]
[345037352,1733944272372,-500.0,0.00029863,7]
[345037353,1733944272382,-500.0,0.00029863,7]
[345037354,1733944272391,-500.0,0.00029863,7]
[345037355,1733944272400,-500.0,0.00029863,7]
[345037356,1733944272410,-500.0,0.00029863,7]
[345037357,1733944272419,-500.0,0.00029863,7]
[345037358,1733944272428,-500.0,0.00029863,7]
[345037359,1733944272438,-7298.6088,0.00029863,7]
[345037360,1733944272447,-500.0,0.00029863,7]
[345037361,1733944272456,-500.0,0.00029863,7]
[345037362,1733944272465,-500.0,0.00029863,7]
[345037363,1733944272474,-500.0,0.00029863,7]
[345037364,1733944272483,-500.0,0.00029863,7]
[345037365,1733944272493,-500.0,0.00029863,7]
[345037366,1733944272502,-500.0,0.00029863,7]
[345037367,1733944272511,-500.0,0.00029863,7]
[345037368,1733944272521,-550.47430611,0.00029863,7]
[345037369,1733944272530,-500.0,0.00029863,7]
[345037370,1733944272539,-500.0,0.00029863,7]
[345037371,1733944272553,-195.71,0.00029863,7]
[345037372,1733944272563,-500.0,0.00029863,7]
[345037373,1733944272572,-505.71050674,0.00029863,7]
[345037374,1733944272582,-500.0,0.00029863,7]
[345037375,1733944272591,-500.0,0.00029863,7]
[345037376,1733944272600,-500.0,0.00029863,7]
[345037377,1733944272609,-500.0,0.00029863,7]
[345037378,1733944272619,-500.0,0.00029863,7]
[345037379,1733944272629,-500.0,0.00029863,7]
[345037380,1733944272639,-500.0,0.00029863,7]
[345037381,1733944272648,-500.0,0.00029863,7]
[345037382,1733944272658,-500.0,0.00029863,7]
[345037383,1733944272667,-500.0,0.00029863,7]
[345037384,1733944272677,-500.0,0.00029863,7]
[345037385,1733944272686,-500.0,0.00029863,7]
[345037386,1733944272696,-500.0,0.00029863,7]
[345037387,1733944272705,-500.0,0.00029863,7]
[345037388,1733944272714,-295.48650496,0.00029863,7]
[345037389,1733944272725,-500.0,0.00029863,7]
[345037390,1733944272739,-500.0,0.00029863,7]
[345037391,1733944272748,-500.0,0.00029863,7]
[345037392,1733944272758,-500.0,0.00029863,7]
[345037393,1733944272768,-151.0,0.00029863,7]
[345037394,1733944272778,-500.0,0.00029863,7]
[345037395,1733944272788,-151.0,0.00029863,7]
[345037396,1733944272798,-500.0,0.00029863,7]
[345037397,1733944272808,-500.0,0.00029863,7]
[345037398,1733944272817,-500.0,0.00029863,7]
[345037399,1733944272827,-526.9200293,0.00029863,7]
[345037400,1733944272837,-151.0,0.00029863,7]
[345037401,1733944272847,-500.0,0.00029863,7]
[345037402,1733944272856,-500.0,0.00029863,7]
[345037403,1733944272866,-10183.63,0.00029863,7]
[345037404,1733944272876,-260.37346927,0.00029863,7]
[345037405,1733944272886,-500.0,0.00029863,7]
[345037406,1733944272896,-10183.63,0.00029863,7]
[345037407,1733944272906,-151.0,0.00029863,7]
[345037408,1733944272916,-10183.63,0.00029863,7]
[345037409,1733944272926,-534.37611824,0.00029863,7]
[345037410,1733944272936,-500.0,0.00029863,7]
[345037411,1733944272946,-10183.63,0.00029863,7]
[345037412,1733944272956,-151.0,0.00029863,7]
[345037413,1733944272966,-10183.63,0.00029863,7]
[345037414,1733944272978,-10183.63,0.00029863,7]
[345037415,1733944272988,-500.0,0.00029863,7]
[345037416,1733944272998,-500.0,0.00029863,7]
[345037417,1733944273008,-10183.63,0.00029863,7]
[345037418,1733944273018,-151.0,0.00029863,7]
[345037419,1733944273028,-10183.63,0.00029863,7]
[345037420,1733944273038,-151.0,0.00029863,7]
[345037421,1733944273048,-10183.63,0.00029863,7]
[345037422,1733944273058,-151.0,0.00029863,7]
[345037423,1733944273067,-10183.63,0.00029863,7]
[345037424,1733944273077,-10183.63,0.00029863,7]
[345037425,1733944273087,-408.095228,0.00029863,7]
[345037426,1733944273096,-10183.63,0.00029863,7]
[345037427,1733944273105,-408.095228,0.00029863,7]
[345037428,1733944273115,-10183.63,0.00029863,7]
[345037429,1733944273124,-500.0,0.00029863,7]
[345037430,1733944273134,-408.095228,0.00029863,7]
[345037431,1733944273143,-500.0,0.00029863,7]
[345037432,1733944273153,-10183.63,0.00029863,7]
[345037433,1733944273162,-10183.63,0.00029863,7]
[345037434,1733944273172,-408.095228,0.00029863,7]
[345037435,1733944273182,-10183.63,0.00029863,7]
[345037436,1733944273192,-500.0,0.00029863,7]
[345037437,1733944273203,-500.0,0.00029863,7]
[345037438,1733944273213,-408.095228,0.00029863,7]
[345037439,1733944273223,-10183.63,0.00029863,7]
[345037440,1733944273233,-500.0,0.00029863,7]
[345037441,1733944273243,-10183.63,0.00029863,7]
[345037442,1733944273253,-408.095228,0.00029863,7]
[345037443,1733944273263,-236.13270984,0.00029863,7]
[345037444,1733944273274,-500.0,0.00029863,7]
[345037445,1733944273284,-10183.63,0.00029863,7]
[345037446,1733944273295,-408.095228,0.00029863,7]
[345037447,1733944273305,-500.0,0.00029863,7]
[345037448,1733944273315,-10183.63,0.00029863,7]
[345037449,1733944273325,-254.9765431,0.00029863,7]
[345037450,1733944273335,-10183.63,0.00029863,7]
[345037451,1733944273344,-500.0,0.00029863,7]
[345037452,1733944273354,-10183.63,0.00029863,7]
[345037453,1733944273364,-500.0,0.00029863,7]
[345037454,1733944273373,-513.07619765,0.00029863,7]
[345037455,1733944273383,-500.0,0.00029863,7]
[345037456,1733944273392,-10183.63,0.00029863,7]
[345037457,1733944273402,-408.095228,0.00029863,7]
[345037458,1733944273411,-500.0,0.00029863,7]
[345037459,1733944273421,-420.24979105,0.00029863,7]
[345037460,1733944273431,-10183.8365796,0.00029863,7]
[345037461,1733944273441,-500.0,0.00029863,7]
[345037462,1733944273450,-642.79979387,0.00029863,7]
[345037463,1733944273460,-408.095228,0.00029863,7]
[345037464,1733944273470,-500.0,0.00029863,7]
[345037465,1733944273481,-408.095228,0.00029863,7]
[345037466,1733944273491,-408.095228,0.00029863,7]
[345037467,1733944273501,-500.0,0.00029863,7]
[345037468,1733944273511,-160.0,0.00029869,10]
[345037469,1733944273521,-3000.0,0.0002987,2]
[345037470,1733944273531,-161.98989227,0.00029872,10]
[345037471,1733944273541,-507.67792998,0.00029873,5]
[345037472,1733944273554,-500.0,0.00029873,5]
[345037473,1733944273563,-211.72695186,0.00029873,5]
[345037474,1733944273574,-502.78573378,0.00029873,5]
[345037475,1733944273583,-500.0,0.00029873,5]
[345037476,1733944273594,-500.0,0.00029873,5]
[345037477,1733944273604,-381.1591045,0.00029873,5]
[345037478,1733944273614,-500.0,0.00029873,5]
[345037479,1733944273624,-500.0,0.00029873,5]
[345037480,1733944273634,-183.29590742,0.00029873,5]
[345037481,1733944273643,-500.0,0.00029873,5]
[345037482,1733944273652,-3000.0,0.0002988,2]
[345037483,1733944273661,-471.29617869,0.00029883,2]
[345037484,1733944273670,-3023.42062172,0.0002989,2]
[345037485,1733944273679,-3000.0,0.0002989,2]
[345037486,1733944273688,-1669.75733609,0.00029898,2]
[345037487,1733944273698,-387.82645587,0.000299,2]
[345037488,1733944273707,-173141.77188147,0.000299,2]
[345037489,1733944273717,-3000.0,0.000299,2]
[345037490,1733944273727,-153.4,0.000299,31]
[345037491,1733944273737,-153.4,0.000299,31]
[345037492,1733944273746,-153.4,0.000299,31]
[345037493,1733944273755,-153.4,0.000299,31]
[345037494,1733944273763,-153.4,0.000299,31]
[345037495,1733944273773,-153.4,0.000299,31]
[345037496,1733944273782,-153.4,0.000299,31]
[345037497,1733944273791,-153.4,0.000299,31]
[345037498,1733944273801,-153.4,0.000299,31]
[345037499,1733944273810,-153.4,0.000299,31]
[345037500,1733944273819,-500.0,0.00029905,2]
[345037501,1733944273828,-500.0,0.00029909,2]
[345037502,1733944273837,-3000.0,0.0002991,2]
[345037503,1733944273847,-500.0,0.00029916,2]
[345037504,1733944273857,-3000.0,0.0002992,2]
[345037505,1733944273867,-3000.0,0.0002993,2]
[345037506,1733944273876,-447.34,0.00029935,2]
[345037507,1733944273886,-3000.0,0.0002994,2]
[345037508,1733944273895,-3000.0,0.0002995,2]
[345037509,1733944273905,-3000.0,0.0002996,2]
[345037510,1733944273914,-3000.0,0.0002997,2]
[345037511,1733944273924,-500.0,0.00029973,5]
[345037512,1733944273934,-500.0,0.00029973,5]
[345037513,1733944273944,-500.0,0.00029973,5]
[345037514,1733944273954,-500.0,0.00029973,5]
[345037515,1733944273964,-3000.0,0.0002998,2]
[345037516,1733944274063,-500.0,0.00029985,2]
[345037517,1733944274075,-535.82078175,0.00029985,2]
[345037518,1733944274085,-3000.0,0.0002999,2]
[345037519,1733944274095,-1669.75733609,0.00029997,2]
[345037520,1733944274105,-104061.0,0.0003,7]
[345037521,1733944274114,-2000.0,0.0003,2]
[345037522,1733944274124,-2000.0,0.0003,7]
[345037523,1733944274134,-2014.53488776,0.0003,2]
[345037524,1733944274143,-207.65962925,0.0003,10]
[345037525,1733944274153,-642.49,0.0003,2]
[345037526,1733944274163,-1221.48433653,0.0003,120]
[345037527,1733944274172,-30607.86117887,0.0003,3]
[345037528,1733944274182,-1026.74733784,0.0003,7]
[345037529,1733944274192,-265.50714842,0.0003,30]
[345037530,1733944274202,-279226.15664873,0.0003,30]
[345037531,1733944274211,-288.0,0.0003,20]
[345037532,1733944274221,-285.0,0.0003,20]
[345037533,1733944274231,-285.0,0.0003,20]
[345037534,1733944274241,-285.0,0.0003,20]
[345037535,1733944274251,-11006.14455833,0.0003,30]
[345037536,1733944274261,-3554.93,0.0003,30]
[345037537,1733944274271,-40133.19742996,0.0003,4]
[345037538,1733944274282,-191.00775,0.0003,2]
[345037539,1733944274291,-88910.09752631,0.0003,30]
[345037540,1733944274301,-3000.0,0.0003,2]
[345037541,1733944274311,-153.4,0.0003,31]
[345037542,1733944274320,-153.4,0.0003,31]
[345037543,1733944274330,-153.4,0.0003,31]
[345037544,1733944274339,-153.4,0.0003,31]
[345037545,1733944274349,-153.4,0.0003,31]
[345037546,1733944274359,-153.4,0.0003,31]
[345037547,1733944274368,-153.4,0.0003,31]
[345037548,1733944274379,-153.4,0.0003,31]
[345037549,1733944274389,-153.4,0.0003,31]
[345037550,1733944274398,-153.4,0.0003,31]
[345037551,1733944274407,-153.4,0.0003,31]
[345037552,1733944274418,-153.4,0.0003,31]
[345037553,1733944274428,-153.4,0.0003,31]
[345037554,1733944274438,-153.4,0.0003,31]
[345037555,1733944274448,-153.4,0.0003,31]
[345037556,1733944274458,-153.4,0.0003,31]
[345037557,1733944274469,-153.4,0.0003,31]
[345037558,1733944274480,-153.4,0.0003,31]
[345037559,1733944274490,-153.4,0.0003,31]
[345037560,1733944274500,-231.0,0.0003,2]
[345037561,1733944274510,-3000.0,0.0003001,2]
[345037562,1733944274520,-3000.0,0.0003002,2]
[345037563,1733944274530,-471.29617869,0.00030024,2]
[345037564,1733944274539,-3000.0,0.0003003,2]
[345037565,1733944274552,-500.0,0.00030032,2]
[345037566,1733944274562,-3000.0,0.0003004,2]
[345037567,1733944274572,-1324.78075188,0.0003005,3]
[345037568,1733944275319,-500.0,0.00029863,7]
[345037569,1733944275330,-408.095228,0.00029863,7]
[345037570,1733944275340,-408.095228,0.00029863,7]
[345037571,1733944275349,-500.0,0.00029863,7]
[345037572,1733944275359,-500.0,0.00029863,7]
[345037573,1733944275368,-500.0,0.00029863,7]
[345037574,1733944275378,-110.18415329,0.00029863,7]
[345037575,1733944275389,-389.81584671,0.00029863,7]
[345037576,1733944275399,-408.095228,0.00029863,7]
[345037577,1733944275408,-434.9372,0.00029863,7]
[345037578,1733944275418,-408.095228,0.00029863,7]
[345037579,1733944275427,-408.095228,0.00029863,7]
[345037580,1733944275437,-408.095228,0.00029863,7]
[345037581,1733944275446,-408.095226,0.00029863,7]
[345037582,1733944275456,-1175.21924812,0.0003005,3]
[345037583,1733944275465,-2500.0,0.0003005,3]
[345037584,1733944275474,-515.96989414,0.0003005,3]
[345037585,1733944275485,-3000.0,0.0003005,2]
[345037586,1733944275503,-3000.0,0.0003006,2]
[345037587,1733944275525,-3295.16013597,0.0003007,2]
[345037588,1733944275537,-480.02913384,0.0003007,2]
[345037589,1733944275594,-851.5439091,0.0003007,2]
[345037606,1733945133988,210.940811,0.00013973,2]
[345037613,1733945314576,6107.61566347,0.00026794,120]
[345037614,1733945314597,1221.48433653,0.00026794,120]
[345037633,1733945432385,-210.940811,0.00020447,2]
[345037634,1733945432395,-566.89146791,0.00022,2]
[345037635,1733945432404,-161.31547641,0.00022,10]
[345037636,1733945432414,-831.42285529,0.0002201,16]
[345037637,1733945432425,-162.0,0.00025,2]
[345037638,1733945432435,-162.0,0.0002589,2]
[345037639,1733945432444,-300.0,0.00025999,2]
[345037640,1733945432455,-300.0,0.00025999,2]
[345037641,1733945432464,-261.17392355,0.00026,2]
[345037674,1733945438148,-599.98798803,0.00026,2]
[345037916,1733945440439,-2475.22516223,0.00026,2]
[345037918,1733945440449,-5115.17483777,0.00026,30]
[345039411,1733946379052,199.662314,0.00013973,2]
[345039448,1733946632525,-199.662314,0.00020447,2]
[345039449,1733946632536,-164.139205,0.00023956,2]
[345039450,1733946632547,-173.36736,0.00024844,2]
[345039451,1733946632557,-179.8680009,0.000249,2]
[345039452,1733946632567,-179.86800089,0.000249,2]
[345039453,1733946632576,-179.86800089,0.000249,2]
[345039454,1733946632587,-300.0,0.00024974,2]
[345039455,1733946632596,-300.0,0.00024974,2]
[345039456,1733946632606,-89479.31149527,0.00024974,2]
[345039457,1733946632615,-202.31372172,0.00024974,2]
[345039458,1733946632625,-24900.0,0.00024975,2]
[345039459,1733946632634,-161.0,0.00025,2]
[345039460,1733946632643,-2182.6216734,0.00025689,2]
[345039461,1733946632652,-162.0,0.0002589,2]
[345039462,1733946632662,-9060.28869223,0.00026,30]
[345039464,1733946632682,-10316.2429799,0.00026,2]
[345039465,1733946632692,-2182.6216734,0.00026504,2]
[345039466,1733946632702,-6988.52878315,0.00026794,120]
[345039467,1733946632712,-199.662314,0.00026921,2]
[345039468,1733946632721,-500.0,0.00026999,2]
[345039469,1733946632731,-500.0,0.00026999,2]
[345039471,1733946632742,-500.0,0.00026999,2]
[345039472,1733946632752,-500.0,0.00026999,2]
[345039473,1733946632762,-500.0,0.00026999,2]
[345039474,1733946632771,-620.0,0.00026999,2]
[345039475,1733946632781,-500.0,0.00026999,2]
[345039476,1733946632790,-500.0,0.00026999,2]
[345039477,1733946632800,-500.0,0.00026999,2]
[345039478,1733946632809,-500.0,0.00026999,2]
[345039479,1733946632819,-351.65747932,0.00026999,2]
[345039480,1733946632829,-499.99999999,0.00026999,2]
[345039481,1733946632839,-24213.68168867,0.00027,2]
[345039482,1733946632849,-37550.20390939,0.00027,2]
[345039483,1733946632859,-420.0,0.00027055,2]
[345039484,1733946632868,-500.0,0.00027214,2]
[345039485,1733946632878,-2182.6216734,0.00027318,2]
[345039486,1733946632887,-420.0,0.00027471,2]
[345039487,1733946632897,-164.139205,0.00027501,2]
[345039488,1733946632907,-500.0,0.000276,5]
[345039489,1733946632916,-1000.0,0.00027762,5]
[345039490,1733946632926,-174.9468455,0.00027766,2]
[345039491,1733946632935,-351.1524442,0.00027982,30]
[345039492,1733946632945,-2182.6216734,0.00028132,2]
[345039493,1733946632955,-233.47374154,0.00028148,5]
[345039494,1733946632964,-155.00540145,0.00028227,2]
[345039495,1733946632974,-591.727,0.0002857,2]
[345039496,1733946632985,-153.87921338,0.00028749,2]
[345039497,1733946632995,-1000.0,0.00028764,5]
[345039498,1733946633004,-351.3069039,0.00028767,30]
[345039499,1733946633014,-351.3069041,0.00028767,30]
[345039500,1733946633024,-351.3069039,0.00028767,30]
[345039501,1733946633034,-351.3069041,0.00028767,30]
[345039502,1733946633043,-351.3069039,0.00028767,30]
[345039503,1733946633053,-351.3069041,0.00028767,30]
[345039504,1733946633063,-351.3069039,0.00028767,30]
[345039505,1733946633072,-351.3069041,0.00028767,30]
[345039506,1733946633082,-351.3069039,0.00028767,30]
[345039507,1733946633091,-351.3069041,0.00028767,30]
[345039508,1733946633101,-699.5390728,0.00028767,30]
[345039509,1733946633111,-213.5522929,0.00028849,30]
[345039510,1733946633121,-306.0,0.00028849,30]
[345039511,1733946633131,-153.0,0.00028849,30]
[345039512,1733946633141,-213.5522929,0.00028849,30]
[345039513,1733946633151,-153.0,0.00028849,30]
[345039514,1733946633160,-213.5522929,0.00028849,30]
[345039515,1733946633170,-153.0,0.00028849,30]
[345039516,1733946633180,-213.5522929,0.00028849,30]
[345039517,1733946633190,-153.0,0.00028849,30]
[345039518,1733946633200,-213.5522929,0.00028849,30]
[345039519,1733946633210,-153.0,0.00028849,30]
[345039520,1733946633220,-153.0,0.00028849,30]
[345039521,1733946633229,-153.0,0.00028849,30]
[345039522,1733946633241,-153.0,0.00028849,30]
[345039523,1733946633251,-213.5522929,0.00028849,30]
[345039524,1733946633261,-458.8926588,0.00028849,30]
[345039525,1733946633271,-213.5522929,0.00028849,30]
[345039526,1733946633280,-213.5522929,0.00028849,30]
[345039527,1733946633291,-213.5522929,0.00028849,30]
[345039528,1733946633301,-213.3759726,0.00028849,30]
[345039529,1733946633311,-2182.6216734,0.00028946,2]
[345039530,1733946633322,-150.0,0.00029,2]
[345039531,1733946633332,-302.9394212,0.00029,2]
[345039532,1733946633345,-153.0,0.00029041,30]
[345039533,1733946633355,-213.5522929,0.00029041,30]
[345039534,1733946633367,-160.0,0.00029198,3]
[345039535,1733946633377,-421.76501994,0.0002929,2]
[345039536,1733946633388,-587.0,0.00029311,2]
[345039537,1733946633398,-153.87921338,0.00029358,2]
[345039538,1733946633408,-310.00031446,0.00029447,2]
[345039539,1733946633419,-153.0,0.00029589,30]
[345039540,1733946633429,-249.85,0.00029637,2]
[345039541,1733946633439,-533.0,0.00029637,2]
[345039542,1733946633450,-2370.0,0.00029637,2]
[345039543,1733946633460,-2161.0,0.00029637,2]
[345039544,1733946633470,-191.966,0.00029637,2]
[345039545,1733946633480,-150.0,0.00029637,2]
[345039546,1733946633492,-213.5522929,0.00029671,30]
[345039547,1733946633503,-24334.62434783,0.000297,2]
[345039548,1733946633512,-2182.6216734,0.00029761,2]
[345039549,1733946633522,-1000.0,0.00029788,2]
[345039550,1733946633532,-500.0,0.00029799,7]
[345039551,1733946633542,-189.14972267,0.00029799,2]
[345039552,1733946633552,-500.0,0.00029799,2]
[345039553,1733946633563,-181.7206913,0.00029799,2]
[345039554,1733946633573,-194.94504339,0.00029799,2]
[345039555,1733946633583,-1272.03232917,0.000298,2]